[Event "Live Chess"]
[Site "Chess.com"]
[Date "2024.06.01"]
[Round "-"]
[White "Colm_Buckley"]
[Black "KwikPhoenix"]
[Result "1/2-1/2"]
[WhiteElo "1869"]
[BlackElo "2455"]
[TimeControl "300"]
[EndTime "12:51:28 PDT"]
[Termination "Game drawn by agreement"]

1. d4 {[%clk 0:04:57.1]} 1... f5 {[%clk 0:04:59.1]} 2. c4 {[%clk 0:04:56.7]}
2... Nf6 {[%clk 0:04:58.4]} 3. Nc3 {[%clk 0:04:56.4]} 3... e6 {[%clk 0:04:58]}
4. g3 {[%clk 0:04:56]} 4... Be7 {[%clk 0:04:57.2]} 5. Bg2 {[%clk 0:04:55.7]}
5... O-O {[%clk 0:04:56.9]} 6. Nh3 {[%clk 0:04:53.4]} 6... d6 {[%clk 0:04:40.8]}
7. O-O {[%clk 0:04:45]} 7... e5 {[%clk 0:04:25]} 8. dxe5 {[%clk 0:04:38.9]} 8...
dxe5 {[%clk 0:04:24.9]} 9. Nd5 {[%clk 0:04:32.5]} 9... Nxd5 {[%clk 0:04:22.6]}
10. Qxd5+ {[%clk 0:04:24.1]} 10... Qxd5 {[%clk 0:04:20]} 11. Bxd5+ {[%clk
0:04:21.1]} 11... Kh8 {[%clk 0:04:19.3]} 12. f4 {[%clk 0:04:17.5]} 12... c6
{[%clk 0:04:14.6]} 13. Bg2 {[%clk 0:04:09.8]} 13... e4 {[%clk 0:04:12.9]} 14.
Be3 {[%clk 0:04:00.9]} 14... Be6 {[%clk 0:04:06.4]} 15. b3 {[%clk 0:03:58.8]}
15... h6 {[%clk 0:04:00.2]} 16. Rfd1 {[%clk 0:03:56.6]} 16... Na6 {[%clk
0:03:59.2]} 17. a3 {[%clk 0:03:53.6]} 17... Bf6 {[%clk 0:03:56.9]} 18. Rab1
{[%clk 0:03:49.4]} 18... b6 {[%clk 0:03:52.6]} 19. Nf2 {[%clk 0:03:46.9]} 19...
Rfd8 {[%clk 0:03:49]} 20. h3 {[%clk 0:03:41.2]} 20... g6 {[%clk 0:03:45.5]} 21.
g4 {[%clk 0:03:38.5]} 21... Kg7 {[%clk 0:03:43.9]} 22. g5 {[%clk 0:03:16.7]}
22... hxg5 {[%clk 0:03:37.7]} 23. fxg5 {[%clk 0:03:15.1]} 23... Be5 {[%clk
0:03:34.5]} 24. Kf1 {[%clk 0:02:52.9]} 24... Rac8 {[%clk 0:03:21.6]} 25. Bc1
{[%clk 0:02:32.5]} 25... Rxd1+ {[%clk 0:03:08.6]} 26. Nxd1 {[%clk 0:02:30.3]}
26... Rd8 {[%clk 0:03:04.7]} 27. Ne3 {[%clk 0:02:11.2]} 27... f4 {[%clk
0:02:49.3]} 28. Ng4 {[%clk 0:02:09.6]} 28... Rd1+ {[%clk 0:02:48.8]} 29. Kf2
{[%clk 0:02:05.1]} 29... Bd4+ {[%clk 0:02:48.3]} 30. e3 {[%clk 0:02:00.3]} 30...
Bxe3+ {[%clk 0:02:47.8]} 31. Nxe3 {[%clk 0:01:58.9]} 31... fxe3+ {[%clk
0:02:39]} 32. Kxe3 {[%clk 0:01:57.4]} 32... Kf7 {[%clk 0:02:30.2]} 33. Bxe4
{[%clk 0:01:47.8]} 33... Nc5 {[%clk 0:02:20.5]} 34. Bxc6 {[%clk 0:01:26.1]}
34... Bf5 {[%clk 0:02:17.1]} 35. Bf3 {[%clk 0:01:03.2]} 35... Rd3+ {[%clk
0:02:06.1]} 36. Ke2 {[%clk 0:00:57.4]} 36... Rxf3 {[%clk 0:02:05.4]} 37. Kxf3
{[%clk 0:00:51.5]} 37... Bxb1 {[%clk 0:02:04.7]} 38. b4 {[%clk 0:00:49.6]} 38...
Nb3 {[%clk 0:02:02.2]} 39. Be3 {[%clk 0:00:44.3]} 39... Bf5 {[%clk 0:01:59.8]}
40. h4 {[%clk 0:00:38.8]} 40... Bd7 {[%clk 0:01:59.3]} 41. Ke4 {[%clk
0:00:33.3]} 41... Ke6 {[%clk 0:01:52.2]} 42. Kd3 {[%clk 0:00:32.6]} 42... Ba4
{[%clk 0:01:40.7]} 43. Kc3 {[%clk 0:00:31.3]} 43... Kf5 {[%clk 0:01:31.7]} 44.
c5 {[%clk 0:00:30.5]} 44... bxc5 {[%clk 0:01:29.1]} 45. bxc5 {[%clk 0:00:29.6]}
45... Ke6 {[%clk 0:01:14.6]} 46. Kb4 {[%clk 0:00:27.6]} 46... Na1 {[%clk
0:00:51.4]} 47. Kxa4 {[%clk 0:00:25.5]} 47... Nc2 {[%clk 0:00:51.1]} 48. Bf2
{[%clk 0:00:22.8]} 48... Kd7 {[%clk 0:00:49.2]} 49. Kb3 {[%clk 0:00:20.7]}
1/2-1/2

[Event "Live Chess"]
[Site "Chess.com"]
[Date "2024.06.01"]
[Round "-"]
[White "Zhevzh1k7"]
[Black "KeithArkell"]
[Result "0-1"]
[WhiteElo "1108"]
[BlackElo "2465"]
[TimeControl "300"]
[EndTime "12:51:59 PDT"]
[Termination "KeithArkell won by checkmate"]

1. e4 {[%clk 0:04:56.6]} 1... c6 {[%clk 0:04:58.4]} 2. d4 {[%clk 0:04:53.8]}
2... d5 {[%clk 0:04:57.6]} 3. f3 {[%clk 0:04:41.7]} 3... e5 {[%clk 0:04:51.6]}
4. dxe5 {[%clk 0:04:36.5]} 4... Bc5 {[%clk 0:04:49.8]} 5. exd5 {[%clk 0:04:32]}
5... Qb6 {[%clk 0:04:48.4]} 6. Qe2 {[%clk 0:04:25.4]} 6... Bxg1 {[%clk
0:04:46.5]} 7. Nd2 {[%clk 0:04:07.7]} 7... cxd5 {[%clk 0:04:44.5]} 8. Nb3 {[%clk
0:03:57.9]} 8... Nc6 {[%clk 0:04:42.5]} 9. a4 {[%clk 0:03:45.3]} 9... a5 {[%clk
0:04:39.3]} 10. Bf4 {[%clk 0:03:28.7]} 10... Nge7 {[%clk 0:04:37.4]} 11. O-O-O
{[%clk 0:03:16.3]} 11... Be6 {[%clk 0:04:35.5]} 12. Qb5 {[%clk 0:03:02.8]} 12...
Be3+ {[%clk 0:04:32]} 13. Bxe3 {[%clk 0:02:56.5]} 13... Qxe3+ {[%clk 0:04:31.9]}
14. Kb1 {[%clk 0:02:55.2]} 14... O-O {[%clk 0:04:30.5]} 15. Qxb7 {[%clk
0:02:47]} 15... Rab8 {[%clk 0:04:27.6]} 16. Qa6 {[%clk 0:02:41.4]} 16... Nxe5
{[%clk 0:04:21.4]} 17. Be2 {[%clk 0:02:31.1]} 17... Rb6 {[%clk 0:04:18.9]} 18.
Qxa5 {[%clk 0:02:25.3]} 18... Rfb8 {[%clk 0:04:14.7]} 19. Bb5 {[%clk 0:02:12.7]}
19... Nc4 {[%clk 0:04:06.7]} 20. Bxc4 {[%clk 0:02:01.2]} 20... dxc4 {[%clk
0:04:05.8]} 21. Rhe1 {[%clk 0:01:47.8]} 21... Qf2 {[%clk 0:04:04.8]} 22. Rf1
{[%clk 0:01:41.9]} 22... Qxf1 {[%clk 0:03:42.3]} 23. Rxf1 {[%clk 0:01:38.3]}
23... cxb3 {[%clk 0:03:41.4]} 24. cxb3 {[%clk 0:01:29.8]} 24... Rxb3 {[%clk
0:03:39.8]} 25. Rf2 {[%clk 0:01:19]} 25... h6 {[%clk 0:03:34.8]} 26. Qc5 {[%clk
0:01:11.4]} 26... Nd5 {[%clk 0:03:31]} 27. a5 {[%clk 0:01:05.8]} 27... Nf4
{[%clk 0:03:26.6]} 28. Rd2 {[%clk 0:00:52.4]} 28... Nd3 {[%clk 0:03:23.8]} 29.
Qd4 {[%clk 0:00:40]} 29... Nxb2 {[%clk 0:03:18]} 30. Rxb2 {[%clk 0:00:38.2]}
30... Rxb2+ {[%clk 0:03:17.1]} 31. Qxb2 {[%clk 0:00:32.9]} 31... Rxb2+ {[%clk
0:03:15.9]} 32. Kxb2 {[%clk 0:00:32.8]} 32... Bc4 {[%clk 0:03:14.9]} 33. Kc3
{[%clk 0:00:31.3]} 33... Bf1 {[%clk 0:03:13.9]} 34. g4 {[%clk 0:00:27.6]} 34...
Be2 {[%clk 0:03:12]} 35. Kd2 {[%clk 0:00:19.2]} 35... Bxf3 {[%clk 0:03:11]} 36.
Ke3 {[%clk 0:00:18.5]} 36... Bxg4 {[%clk 0:03:10.1]} 37. a6 {[%clk 0:00:16.8]}
37... Bc8 {[%clk 0:03:09.2]} 38. a7 {[%clk 0:00:15.4]} 38... Bb7 {[%clk
0:03:08.3]} 39. Kd4 {[%clk 0:00:14.9]} 39... g5 {[%clk 0:03:07.6]} 40. Kc5
{[%clk 0:00:14.5]} 40... f5 {[%clk 0:03:06.8]} 41. Kb6 {[%clk 0:00:14.4]} 41...
Be4 {[%clk 0:03:05.8]} 42. Kc7 {[%clk 0:00:12.9]} 42... f4 {[%clk 0:03:05.3]}
43. Kb8 {[%clk 0:00:12.8]} 43... f3 {[%clk 0:03:04.8]} 44. a8=Q {[%clk 0:00:12]}
44... Bxa8 {[%clk 0:03:03.8]} 45. Kxa8 {[%clk 0:00:11.9]} 45... f2 {[%clk
0:03:03.4]} 46. Kb7 {[%clk 0:00:11.6]} 46... f1=Q {[%clk 0:03:03]} 47. Kc7
{[%clk 0:00:11.2]} 47... Qh3 {[%clk 0:03:02.4]} 48. Kd8 {[%clk 0:00:11.1]} 48...
Qxh2 {[%clk 0:03:02]} 49. Ke7 {[%clk 0:00:10.7]} 49... Qf4 {[%clk 0:03:01.1]}
50. Ke8 {[%clk 0:00:10.6]} 50... g4 {[%clk 0:03:00.9]} 51. Ke7 {[%clk
0:00:09.6]} 51... g3 {[%clk 0:03:00.8]} 52. Ke6 {[%clk 0:00:08.5]} 52... g2
{[%clk 0:03:00.3]} 53. Kd5 {[%clk 0:00:08.4]} 53... g1=Q {[%clk 0:02:59.5]} 54.
Ke6 {[%clk 0:00:06.9]} 54... Qge3+ {[%clk 0:02:58.5]} 55. Kd5 {[%clk 0:00:06.1]}
55... Qfe5+ {[%clk 0:02:57.1]} 56. Kc4 {[%clk 0:00:04.9]} 56... Q3c3# {[%clk
0:02:56]} 0-1

[Event "Live Chess"]
[Site "Chess.com"]
[Date "2024.06.01"]
[Round "-"]
[White "gobbles19"]
[Black "Vladyslava_A"]
[Result "1-0"]
[WhiteElo "2247"]
[BlackElo "1630"]
[TimeControl "300"]
[EndTime "12:52:09 PDT"]
[Termination "gobbles19 won by resignation"]

1. e4 {[%clk 0:04:57.3]} 1... c5 {[%clk 0:04:58.9]} 2. d4 {[%clk 0:04:56.1]}
2... cxd4 {[%clk 0:04:52.9]} 3. c3 {[%clk 0:04:55.5]} 3... d3 {[%clk 0:04:51.4]}
4. Bxd3 {[%clk 0:04:54]} 4... e6 {[%clk 0:04:49.1]} 5. Bc4 {[%clk 0:04:53.4]}
5... a6 {[%clk 0:04:47.6]} 6. Nf3 {[%clk 0:04:53]} 6... b5 {[%clk 0:04:46.7]} 7.
Bb3 {[%clk 0:04:52.2]} 7... Bb7 {[%clk 0:04:45.9]} 8. Nbd2 {[%clk 0:04:47]} 8...
Nc6 {[%clk 0:04:44.2]} 9. O-O {[%clk 0:04:45.6]} 9... Qc7 {[%clk 0:04:42.4]} 10.
Re1 {[%clk 0:04:40.4]} 10... Be7 {[%clk 0:04:35.5]} 11. Bc2 {[%clk 0:04:30.6]}
11... h5 {[%clk 0:04:30]} 12. e5 {[%clk 0:04:17.8]} 12... g5 {[%clk 0:04:25.4]}
13. Ne4 {[%clk 0:04:07.7]} 13... g4 {[%clk 0:04:12.6]} 14. Nd6+ {[%clk
0:04:03.6]} 14... Bxd6 {[%clk 0:04:10.2]} 15. exd6 {[%clk 0:04:02.8]} 15... Qd8
{[%clk 0:03:57]} 16. Nd4 {[%clk 0:03:25.6]} 16... Qf6 {[%clk 0:03:44.2]} 17. Be4
{[%clk 0:03:08.8]} 17... Nh6 {[%clk 0:03:16.4]} 18. Nxc6 {[%clk 0:03:04.4]}
18... Bxc6 {[%clk 0:03:14.2]} 19. Bxc6 {[%clk 0:03:01]} 19... dxc6 {[%clk
0:02:57.9]} 20. d7+ {[%clk 0:02:59.9]} 20... Kd8 {[%clk 0:02:54.9]} 21. Be3
{[%clk 0:02:59.5]} 21... Rb8 {[%clk 0:02:50.9]} 22. Bd4 {[%clk 0:02:57.9]} 22...
Qh4 {[%clk 0:02:26.1]} 23. Bxh8 {[%clk 0:02:52.2]} 23... Nf5 {[%clk 0:02:08.9]}
24. Qd2 {[%clk 0:02:39.5]} 24... Rb7 {[%clk 0:02:03.9]} 25. Rad1 {[%clk
0:02:35.8]} 25... Ne7 {[%clk 0:01:45.4]} 26. Qd4 {[%clk 0:02:22.7]} 26... Nd5
{[%clk 0:01:08.7]} 27. b3 {[%clk 0:02:02.9]} 27... Qg5 {[%clk 0:01:00]} 28. c4
{[%clk 0:01:58.7]} 28... bxc4 {[%clk 0:00:57.1]} 29. bxc4 {[%clk 0:01:58.6]}
29... Rb4 {[%clk 0:00:45.1]} 30. a3 {[%clk 0:01:36.9]} 30... Ra4 {[%clk
0:00:37.7]} 31. Qc5 {[%clk 0:01:31.6]} 31... Kxd7 {[%clk 0:00:22.8]} 32. cxd5
{[%clk 0:01:28.9]} 32... exd5 {[%clk 0:00:13]} 33. Be5 {[%clk 0:01:19.6]} 1-0

[Event "Live Chess"]
[Site "Chess.com"]
[Date "2024.06.01"]
[Round "-"]
[White "nigelst"]
[Black "missedJariChance"]
[Result "1-0"]
[WhiteElo "1645"]
[BlackElo "1339"]
[TimeControl "300"]
[EndTime "12:52:20 PDT"]
[Termination "nigelst won by resignation"]

1. e4 {[%clk 0:04:57.4]} 1... c5 {[%clk 0:04:57.4]} 2. Nf3 {[%clk 0:04:55.4]}
2... e6 {[%clk 0:04:55.9]} 3. c3 {[%clk 0:04:51.3]} 3... Nc6 {[%clk 0:04:53]} 4.
d4 {[%clk 0:04:50.8]} 4... d5 {[%clk 0:04:51.8]} 5. exd5 {[%clk 0:04:49.4]} 5...
exd5 {[%clk 0:04:50.3]} 6. Bd3 {[%clk 0:04:44]} 6... Bg4 {[%clk 0:04:46.5]} 7.
O-O {[%clk 0:04:41.4]} 7... Nf6 {[%clk 0:04:42.2]} 8. Bg5 {[%clk 0:04:39.6]}
8... Be7 {[%clk 0:04:39.1]} 9. Nbd2 {[%clk 0:04:38.3]} 9... cxd4 {[%clk
0:04:36.8]} 10. cxd4 {[%clk 0:04:35.8]} 10... Nxd4 {[%clk 0:04:34.2]} 11. Qa4+
{[%clk 0:04:34.3]} 11... Nc6 {[%clk 0:04:30.3]} 12. Ne5 {[%clk 0:04:32.3]} 12...
Qc7 {[%clk 0:04:17]} 13. Bb5 {[%clk 0:04:23.9]} 13... Rc8 {[%clk 0:04:08]} 14.
Bxf6 {[%clk 0:04:13.7]} 14... Bxf6 {[%clk 0:03:58.9]} 15. Nxg4 {[%clk 0:04:12]}
15... O-O {[%clk 0:03:55.3]} 16. Nxf6+ {[%clk 0:04:10.3]} 16... gxf6 {[%clk
0:03:54.3]} 17. Bxc6 {[%clk 0:04:01.5]} 17... bxc6 {[%clk 0:03:52.8]} 18. Nf3
{[%clk 0:03:57.3]} 18... Kh8 {[%clk 0:03:51.8]} 19. Qd4 {[%clk 0:03:54.5]} 19...
Qd6 {[%clk 0:03:47.5]} 20. Rad1 {[%clk 0:03:49.2]} 20... a5 {[%clk 0:03:44.5]}
21. Ng5 {[%clk 0:03:46.7]} 21... Rg8 {[%clk 0:03:40.2]} 22. Ne4 {[%clk
0:03:41.9]} 22... Qf4 {[%clk 0:03:34.8]} 23. Qxf6+ {[%clk 0:03:38.9]} 23... Rg7
{[%clk 0:03:32.3]} 24. Qxf4 {[%clk 0:03:37]} 1-0

[Event "Live Chess"]
[Site "Chess.com"]
[Date "2024.06.01"]
[Round "-"]
[White "FlyingChessKestrel13"]
[Black "WilliamofOrange16th"]
[Result "1-0"]
[WhiteElo "2083"]
[BlackElo "1972"]
[TimeControl "300"]
[EndTime "12:52:45 PDT"]
[Termination "FlyingChessKestrel13 won by resignation"]

1. e4 {[%clk 0:04:57.4]} 1... d6 {[%clk 0:04:59.1]} 2. Nf3 {[%clk 0:04:55.4]}
2... Nf6 {[%clk 0:04:58.6]} 3. Bd3 {[%clk 0:04:53.3]} 3... e5 {[%clk 0:04:57.4]}
4. c3 {[%clk 0:04:52.4]} 4... Be7 {[%clk 0:04:56]} 5. Bc2 {[%clk 0:04:51.5]}
5... O-O {[%clk 0:04:55.4]} 6. O-O {[%clk 0:04:50.1]} 6... Nbd7 {[%clk
0:04:54.6]} 7. d4 {[%clk 0:04:49.4]} 7... c6 {[%clk 0:04:53]} 8. Nbd2 {[%clk
0:04:48.6]} 8... Qc7 {[%clk 0:04:40.1]} 9. Re1 {[%clk 0:04:46.3]} 9... Re8
{[%clk 0:04:37.2]} 10. Nf1 {[%clk 0:04:45.6]} 10... h6 {[%clk 0:04:35.7]} 11.
Ng3 {[%clk 0:04:44.1]} 11... Nb6 {[%clk 0:04:33.4]} 12. Nh4 {[%clk 0:04:38.9]}
12... Bf8 {[%clk 0:04:30.9]} 13. Nhf5 {[%clk 0:04:37.7]} 13... exd4 {[%clk
0:04:28.6]} 14. cxd4 {[%clk 0:04:36]} 14... d5 {[%clk 0:04:23.7]} 15. e5 {[%clk
0:04:34.3]} 15... Nh7 {[%clk 0:04:20.9]} 16. Qd3 {[%clk 0:04:29.8]} 16... Bxf5
{[%clk 0:04:10.4]} 17. Nxf5 {[%clk 0:04:26.7]} 17... g6 {[%clk 0:04:08.8]} 18.
Nxh6+ {[%clk 0:04:23.6]} 18... Bxh6 {[%clk 0:04:08.4]} 19. Bxh6 {[%clk 0:04:22]}
19... Re6 {[%clk 0:04:00.7]} 20. Re3 {[%clk 0:04:19]} 20... Rae8 {[%clk
0:03:58.2]} 21. h4 {[%clk 0:04:16.2]} 21... Qe7 {[%clk 0:03:44.6]} 22. h5 {[%clk
0:04:05.5]} 22... Nc4 {[%clk 0:03:19.5]} 23. Rg3 {[%clk 0:04:03.1]} 23... Qh4
{[%clk 0:02:46]} 24. hxg6 {[%clk 0:03:55.5]} 24... Qxh6 {[%clk 0:02:44.5]} 25.
gxh7+ {[%clk 0:03:47.5]} 25... Kh8 {[%clk 0:02:43.3]} 26. b3 {[%clk 0:03:41.3]}
26... Nb6 {[%clk 0:02:38.5]} 27. Qf3 {[%clk 0:03:40]} 27... Rf8 {[%clk
0:02:32.1]} 28. Qg4 {[%clk 0:03:37]} 28... Rg6 {[%clk 0:02:20.2]} 29. Bxg6
{[%clk 0:03:34.5]} 29... fxg6 {[%clk 0:02:20.1]} 30. Qxg6 {[%clk 0:03:33.7]}
30... Qxg6 {[%clk 0:02:19.1]} 31. Rxg6 {[%clk 0:03:33.2]} 31... Kxh7 {[%clk
0:02:18.9]} 32. Rg4 {[%clk 0:03:31.9]} 1-0

[Event "Live Chess"]
[Site "Chess.com"]
[Date "2024.06.01"]
[Round "-"]
[White "Nazar-Makarchuk"]
[Black "alicechristina"]
[Result "0-1"]
[WhiteElo "1472"]
[BlackElo "1816"]
[TimeControl "300"]
[EndTime "12:52:48 PDT"]
[Termination "alicechristina won by checkmate"]

1. e4 {[%clk 0:04:58.2]} 1... c5 {[%clk 0:04:58.3]} 2. Nf3 {[%clk 0:04:45.9]}
2... d6 {[%clk 0:04:55.6]} 3. d4 {[%clk 0:04:45.4]} 3... cxd4 {[%clk 0:04:54.6]}
4. Qxd4 {[%clk 0:04:44.9]} 4... Nc6 {[%clk 0:04:52.7]} 5. Bb5 {[%clk 0:04:44.2]}
5... Bd7 {[%clk 0:04:50.1]} 6. Bxc6 {[%clk 0:04:43.7]} 6... Bxc6 {[%clk
0:04:49.3]} 7. O-O {[%clk 0:04:43.3]} 7... Nf6 {[%clk 0:04:48.5]} 8. e5 {[%clk
0:04:42.4]} 8... dxe5 {[%clk 0:04:46.8]} 9. Qxd8+ {[%clk 0:04:41.5]} 9... Rxd8
{[%clk 0:04:45.4]} 10. Nxe5 {[%clk 0:04:41.1]} 10... Rc8 {[%clk 0:04:41.7]} 11.
Nxc6 {[%clk 0:04:40.4]} 11... Rxc6 {[%clk 0:04:40.2]} 12. c3 {[%clk 0:04:39.8]}
12... e6 {[%clk 0:04:39.5]} 13. Bg5 {[%clk 0:04:38.8]} 13... Be7 {[%clk
0:04:38.3]} 14. Bxf6 {[%clk 0:04:37.4]} 14... Bxf6 {[%clk 0:04:37.2]} 15. Na3
{[%clk 0:04:37]} 15... Ke7 {[%clk 0:04:35.7]} 16. Nb5 {[%clk 0:04:36]} 16... a6
{[%clk 0:04:33.5]} 17. Nd4 {[%clk 0:04:34.2]} 17... Bxd4 {[%clk 0:04:32.5]} 18.
cxd4 {[%clk 0:04:32.9]} 18... Rc2 {[%clk 0:04:32.1]} 19. b3 {[%clk 0:04:31.7]}
19... Rd8 {[%clk 0:04:30.2]} 20. Rfd1 {[%clk 0:04:30.7]} 20... Kd6 {[%clk
0:04:24.5]} 21. Kf1 {[%clk 0:04:30]} 21... Rdc8 {[%clk 0:04:23.5]} 22. Ke1
{[%clk 0:04:28.3]} 22... Rb2 {[%clk 0:04:21.4]} 23. Rd2 {[%clk 0:04:27.4]} 23...
Rcc2 {[%clk 0:04:20.4]} 24. Rxc2 {[%clk 0:04:26.4]} 24... Rxc2 {[%clk
0:04:19.7]} 25. a4 {[%clk 0:04:25.5]} 25... Kd5 {[%clk 0:04:18.5]} 26. Rd1
{[%clk 0:04:23.9]} 26... Rb2 {[%clk 0:04:17.5]} 27. Rd3 {[%clk 0:04:22.7]} 27...
Ke4 {[%clk 0:04:12.4]} 28. Rf3 {[%clk 0:04:16.1]} 28... Kxd4 {[%clk 0:04:08.9]}
29. Rxf7 {[%clk 0:04:15.1]} 29... Rxb3 {[%clk 0:04:04]} 30. Rxg7 {[%clk
0:04:13.8]} 30... h5 {[%clk 0:04:03.1]} 31. Rh7 {[%clk 0:04:10.9]} 31... Kd3
{[%clk 0:04:00.2]} 32. Rxh5 {[%clk 0:04:09.9]} 32... Rb1# {[%clk 0:03:58.6]} 0-1

[Event "Live Chess"]
[Site "Chess.com"]
[Date "2024.06.01"]
[Round "-"]
[White "LL220284LL"]
[Black "cymbalshift"]
[Result "1-0"]
[WhiteElo "2551"]
[BlackElo "1762"]
[TimeControl "300"]
[EndTime "12:52:52 PDT"]
[Termination "LL220284LL won by resignation"]

1. b3 {[%clk 0:04:52.2]} 1... Nf6 {[%clk 0:04:57.1]} 2. Bb2 {[%clk 0:04:48]}
2... d6 {[%clk 0:04:56.6]} 3. Nf3 {[%clk 0:04:46.8]} 3... g6 {[%clk 0:04:55.7]}
4. e3 {[%clk 0:04:46.1]} 4... Bg7 {[%clk 0:04:54.8]} 5. Be2 {[%clk 0:04:43.6]}
5... O-O {[%clk 0:04:53.8]} 6. O-O {[%clk 0:04:41.8]} 6... Nbd7 {[%clk 0:04:52]}
7. d3 {[%clk 0:04:40.5]} 7... e5 {[%clk 0:04:50.7]} 8. c4 {[%clk 0:04:38.5]}
8... c6 {[%clk 0:04:49.2]} 9. Nc3 {[%clk 0:04:37.8]} 9... Re8 {[%clk 0:04:43.9]}
10. h3 {[%clk 0:04:36.9]} 10... Nf8 {[%clk 0:04:42.3]} 11. Re1 {[%clk
0:04:35.8]} 11... h5 {[%clk 0:04:39.7]} 12. Bf1 {[%clk 0:04:34.4]} 12... Qe7
{[%clk 0:04:15.3]} 13. Qc2 {[%clk 0:04:27]} 13... Bf5 {[%clk 0:04:11.2]} 14.
Rad1 {[%clk 0:04:14.5]} 14... N8h7 {[%clk 0:04:09.1]} 15. Qc1 {[%clk 0:04:12.7]}
15... Rad8 {[%clk 0:04:04.4]} 16. b4 {[%clk 0:04:11.1]} 16... d5 {[%clk
0:03:54.6]} 17. cxd5 {[%clk 0:04:08.8]} 17... cxd5 {[%clk 0:03:52.4]} 18. a3
{[%clk 0:04:08.2]} 18... Rc8 {[%clk 0:03:48.4]} 19. Qa1 {[%clk 0:04:06.4]} 19...
Qe6 {[%clk 0:03:21.3]} 20. e4 {[%clk 0:04:01.9]} 20... dxe4 {[%clk 0:03:04.7]}
21. dxe4 {[%clk 0:04:01.8]} 21... Rxc3 {[%clk 0:03:03.4]} 22. exf5 {[%clk
0:03:59]} 22... gxf5 {[%clk 0:03:00.3]} 23. Bxc3 {[%clk 0:03:57]} 23... e4
{[%clk 0:02:59.3]} 24. Nd4 {[%clk 0:03:53.8]} 1-0

[Event "Live Chess"]
[Site "Chess.com"]
[Date "2024.06.01"]
[Round "-"]
[White "Thebigsqueeze"]
[Black "agamilewska"]
[Result "1-0"]
[WhiteElo "2291"]
[BlackElo "1757"]
[TimeControl "300"]
[EndTime "12:52:56 PDT"]
[Termination "Thebigsqueeze won by resignation"]

1. d4 {[%clk 0:04:55.9]} 1... d5 {[%clk 0:04:57.6]} 2. c4 {[%clk 0:04:54.1]}
2... dxc4 {[%clk 0:04:56.2]} 3. Nf3 {[%clk 0:04:52.1]} 3... e6 {[%clk
0:04:55.5]} 4. g3 {[%clk 0:04:50.1]} 4... Nf6 {[%clk 0:04:54.9]} 5. Bg2 {[%clk
0:04:49.1]} 5... Bb4+ {[%clk 0:04:52.2]} 6. Bd2 {[%clk 0:04:47.8]} 6... Bxd2+
{[%clk 0:04:51.3]} 7. Nbxd2 {[%clk 0:04:47]} 7... O-O {[%clk 0:04:49.8]} 8. Nxc4
{[%clk 0:04:45.3]} 8... Nc6 {[%clk 0:04:48.9]} 9. O-O {[%clk 0:04:43.4]} 9... b6
{[%clk 0:04:24.2]} 10. Nfd2 {[%clk 0:04:28.7]} 10... Bb7 {[%clk 0:04:21.7]} 11.
Ne5 {[%clk 0:04:26.2]} 11... Qd6 {[%clk 0:03:41.2]} 12. Ndc4 {[%clk 0:04:22.6]}
12... Qxd4 {[%clk 0:03:23.1]} 13. Bxc6 {[%clk 0:04:15]} 13... Qxd1 {[%clk
0:03:20.8]} 14. Rfxd1 {[%clk 0:04:12.8]} 14... Bxc6 {[%clk 0:03:19.8]} 15. Nxc6
{[%clk 0:04:10.8]} 15... Rac8 {[%clk 0:03:18.1]} 16. Ne7+ {[%clk 0:04:08]} 1-0

[Event "Live Chess"]
[Site "Chess.com"]
[Date "2024.06.01"]
[Round "-"]
[White "MaximKovalenko83"]
[Black "Ksenia_2013"]
[Result "1-0"]
[WhiteElo "2255"]
[BlackElo "842"]
[TimeControl "300"]
[EndTime "12:53:01 PDT"]
[Termination "MaximKovalenko83 won by checkmate"]

1. e4 {[%clk 0:04:56.5]} 1... e5 {[%clk 0:04:58.2]} 2. Nf3 {[%clk 0:04:54.7]}
2... Nc6 {[%clk 0:04:56.7]} 3. Bc4 {[%clk 0:04:52.1]} 3... Bc5 {[%clk 0:04:54]}
4. O-O {[%clk 0:04:49]} 4... Nf6 {[%clk 0:04:52.8]} 5. d3 {[%clk 0:04:47.6]}
5... O-O {[%clk 0:04:51.1]} 6. Ng5 {[%clk 0:04:45.9]} 6... d6 {[%clk 0:04:45.4]}
7. c3 {[%clk 0:04:43.8]} 7... Bg4 {[%clk 0:04:38.3]} 8. Qb3 {[%clk 0:04:36.5]}
8... Na5 {[%clk 0:04:34.5]} 9. Bxf7+ {[%clk 0:04:13.4]} 9... Rxf7 {[%clk
0:04:31.9]} 10. Qxf7+ {[%clk 0:04:11.2]} 10... Kh8 {[%clk 0:04:28.3]} 11. b4
{[%clk 0:04:04.2]} 11... Nxe4 {[%clk 0:04:19.5]} 12. dxe4 {[%clk 0:04:01.1]}
12... Qxg5 {[%clk 0:04:17.8]} 13. Bxg5 {[%clk 0:03:59.3]} 13... Nc6 {[%clk
0:04:12.2]} 14. bxc5 {[%clk 0:03:57.3]} 14... Nd8 {[%clk 0:04:10]} 15. Qf8#
{[%clk 0:03:55.4]} 1-0

[Event "Live Chess"]
[Site "Chess.com"]
[Date "2024.06.01"]
[Round "-"]
[White "TigerTank70"]
[Black "PaulHumphreys"]
[Result "1-0"]
[WhiteElo "2193"]
[BlackElo "1393"]
[TimeControl "300"]
[EndTime "12:53:02 PDT"]
[Termination "TigerTank70 won by resignation"]

1. e4 {[%clk 0:04:50.9]} 1... d5 {[%clk 0:04:59.9]} 2. exd5 {[%clk 0:04:49.5]}
2... Nf6 {[%clk 0:04:58.3]} 3. d4 {[%clk 0:04:48.2]} 3... Nxd5 {[%clk 0:04:57]}
4. c4 {[%clk 0:04:46.8]} 4... Nf6 {[%clk 0:04:55.3]} 5. Nc3 {[%clk 0:04:46]}
5... Bf5 {[%clk 0:04:50]} 6. Be2 {[%clk 0:04:43.4]} 6... Nc6 {[%clk 0:04:46]} 7.
Nf3 {[%clk 0:04:41.8]} 7... e6 {[%clk 0:04:42.1]} 8. O-O {[%clk 0:04:39.4]} 8...
Bb4 {[%clk 0:04:40.2]} 9. Bg5 {[%clk 0:04:35.2]} 9... O-O {[%clk 0:04:38]} 10.
Qb3 {[%clk 0:04:34.1]} 10... a5 {[%clk 0:04:35.8]} 11. a3 {[%clk 0:04:31.1]}
11... Be7 {[%clk 0:04:32.7]} 12. Qxb7 {[%clk 0:04:25.9]} 12... Qd7 {[%clk
0:04:25.3]} 13. Ne5 {[%clk 0:04:11.5]} 13... Nxe5 {[%clk 0:04:22.7]} 14. dxe5
{[%clk 0:04:10.4]} 14... Rfb8 {[%clk 0:04:12.7]} 15. Qf3 {[%clk 0:03:59.8]}
15... Bg4 {[%clk 0:03:57.6]} 16. Qe3 {[%clk 0:03:52.2]} 16... Rxb2 {[%clk
0:03:43.5]} 17. exf6 {[%clk 0:03:46.2]} 17... Bxe2 {[%clk 0:03:37.9]} 18. Nxe2
{[%clk 0:03:38.5]} 18... gxf6 {[%clk 0:03:24.7]} 19. Bh6 {[%clk 0:03:37.2]}
19... Kh8 {[%clk 0:03:20.6]} 20. Rfd1 {[%clk 0:03:33.2]} 20... Qc6 {[%clk
0:03:13.2]} 21. Ng3 {[%clk 0:03:30.9]} 21... Rg8 {[%clk 0:03:11.6]} 22. Qc3
{[%clk 0:03:24.8]} 22... Qb6 {[%clk 0:02:46.3]} 23. Be3 {[%clk 0:03:17.3]} 23...
Qb7 {[%clk 0:02:17.9]} 24. c5 {[%clk 0:03:05.5]} 24... Rb3 {[%clk 0:02:10.8]}
25. Qc4 {[%clk 0:02:57.5]} 25... Rb8 {[%clk 0:01:20]} 26. h3 {[%clk 0:02:45.6]}
26... f5 {[%clk 0:01:07.9]} 27. Bd4+ {[%clk 0:02:42.1]} 27... Kg8 {[%clk
0:01:06.1]} 28. Be5 {[%clk 0:02:28.3]} 28... Bh4 {[%clk 0:00:45.7]} 29. Qxh4
{[%clk 0:02:21.6]} 1-0